Workbook

Sheet Readme
A1: Precipitation amount and precipitation d18O data collected at the University of Alabama Tuscaloosa, United States.
A2: References:
A3: Dhungana, R., and Aharon, P., 2019, Stable isotopes and trace elements of drip waters at DeSoto Caverns during rainfall-contrasting years: Chemical Geology, v. 504, p. 96-104.
A4: Lambert, J. W., and Aharon, P., 2010, Oxygen and hydrogen isotopes of rainfall and dripwater at SeSoto Caverns (Alabama, USA); Key to understanding past variability of moisture transport from the Gulf of Mexico: Geochimica Et Cosmochimica Acta, v. 74, no. 3, p. 846-861.
A6: Note:
A7: In order to calculate the expected mean annual d18O rainfall shift (10 year average) from a shift in 'winter' and 'summer' precipitation amount
A8: go to "sensitivity test" sheet cells D145 and D146 and the result is shown in cell P146.
A9: Note 1: values of cells D145 and D146 can be from 0< to 1 for a positive change or -1 to >0 for negative changes
A10: maximum fractional changes of -1 or 1, correspond to 100% change in precipitation amount
A11: Note 2= As an example you can assume stalagmite WE d18O shifts by -1 per mil during the YD cooling event.

Sheet sensitivity test
B1: Initial conditions | C1: Precipitation amount shift | D1: Initial conditions | F1: Amount-weighted | H1: Initial conditions | I1: Summer | J1: Spring | N1: Final conditions | O1: Initial conditions
A2: Month-year | B2: Rainfall (mm) | D2: Rainfall d18O | F2: (no amount effect) | G2: Precipitation amount summer | H2: Amount-weighed d18O | I2: slope mean | J2: slope mean | O2: Annual amount-weighted d18O | S2: Annual amount-weighed d18O | U2: Isotope shift from initial to final conditions
A3: 2005-06-01 | B3: 145.9 | C3: =(B3*$D$146)+B3 -> 145.9 | D3: -6 | E3: =B3/SUM($B$3:$B$5) -> 0.2431666667 | F3: =SUM((D3*E3)+(D4*E4)+(D5*E5)) -> -5.9 | G3: =SUM(C3:C5) -> 600.00 | H3: =SUM(((C3-B3)+(C4-B4)+(C5-B5))*I3)+F3 -> -5.9 | I3: -0.008 | J3: -0.0053 | M3: =B3/$L$14 -> 0.10 | N3: =D3*M3 -> -0.60
A4: 2005-07-01 | B4: 226.2 | C4: =(B4*$D$146)+B4 -> 226.2 | D4: -6.9 | E4: =B4/SUM($B$3:$B$5) -> 0.377 | M4: =B4/$L$14 -> 0.15 | N4: -1.06
A5: 2005-08-01 | B5: 227.9 | C5: 227.9 | D5: -4.9 | E5: =B5/SUM($B$3:$B$5) -> 0.3798333333 | M5: =B5/$L$14 -> 0.16 | N5: -0.76 | P5: summer= | Q5: =G3/P14 -> 0.41 | R5: =Q5*H3 -> -2.42
A6: 2005-09-01 | B6: 75.2 | C6: =(B6*$D$145)+B6 -> 75.2 | D6: -4.4 | E6: =SUM(E3:E5) -> 1 | M6: =B6/$L$14 -> 0.05 | N6: -0.23 | Q6: =C6/$P$14 -> 0.05 | R6: =D6*Q6 -> -0.23
A7: 2005-10-01 | B7: 8 | C7: =(B7*$D$145)+B7 -> 8 | D7: -4.6 | M7: 0.01 | N7: -0.03 | Q7: 0.01 | R7: -0.03
A8: 2005-11-01 | B8: 55.1 | C8: 55.1 | D8: -8.3 | M8: 0.04 | N8: -0.31 | Q8: 0.04 | R8: -0.31
A9: 2005-12-01 | B9: 99.7 | C9: 99.7 | D9: -7.8 | M9: 0.07 | N9: -0.53 | Q9: 0.07 | R9: -0.53
A10: 2006-01-01 | B10: 155.6 | C10: 155.6 | D10: -5.8 | M10: 0.11 | N10: -0.62 | Q10: 0.11 | R10: -0.62
A11: 2006-02-01 | B11: 166 | C11: 166 | D11: -5.9 | M11: 0.11 | N11: -0.67 | Q11: 0.11 | R11: -0.67
A12: 2006-03-01 | B12: 123.3 | C12: =(B12*$D$146)+B12 -> 123.3 | D12: -2.9 | E12: =B12/SUM($B$12:$B$14) -> 0.4012365766 | F12: =SUM((D12*E12)+(D13*E13)+(D14*E14)) -> -3.1 | G12: =SUM(C12:C14) -> 307.30 | H12: =SUM(((C12-B12)+(C13-B13)+(C14-B14))*J3)+F12 -> -3.1 | M12: 0.08 | N12: -0.24 | P12: Spring= | Q12: =G12/P14 -> 0.21 | R12: =Q12*H12 -> -0.66
A13: 2006-04-01 | B13: 69.4 | C13: =(B13*$D$146)+B13 -> 69.4 | D13: -3.1 | E13: =B13/SUM($B$12:$B$14) -> 0.2258379434 | M13: 0.05 | N13: -0.15 | AF13: =S44-O29 -> -0.3
A14: 2006-05-01 | B14: 114.6 | C14: =(B14*$D$146)+B14 -> 114.6 | D14: -3.4 | E14: =B14/SUM($B$12:$B$14) -> 0.37292548 | L14: =SUM(B3:B14) -> 1466.9 | M14: 0.08 | N14: =D14*M14 -> -0.27 | O14: =SUM(N3:N14) -> -5.5 | P14: =SUM(C3:C14) -> 1466.90 | S14: =SUM(R3:R14) -> -5.5 | U14: =S14-O14 -> 0.0
B15: =SUM(B3:B14) -> 1466.9 | E15: =SUM(E12:E14) -> 1
A18: 2006-06-01 | B18: 31.4 | C18: =(B18*$D$146)+B18 -> 31.4 | D18: -1.6 | E18: =B18/SUM($B$18:$B$20) -> 0.1981072555 | F18: =SUM((D18*E18)+(D19*E19)+(D20*E20)) -> -2.2 | G18: =SUM(C18:C20) -> 158.50 | H18: =SUM(((C18-B18)+(C19-B19)+(C20-B20))*I3)+F18 -> -2.2 | M18: =B18/$L$29 -> 0.03 | N18: =D18*M18 -> -0.05
A19: 2006-07-01 | B19: 88.6 | C19: =(B19*$D$146)+B19 -> 88.6 | D19: -2.5 | E19: =B19/SUM($B$18:$B$20) -> 0.5589905363 | M19: 0.09 | N19: -0.23
A20: 2006-08-01 | B20: 38.5 | C20: 38.5 | D20: -2.1 | E20: 0.2429022082 | M20: 0.04 | N20: -0.09 | P20: summer= | Q20: =G18/P29 -> 0.17 | R20: =Q20*H18 -> -0.37
A21: 2006-09-01 | B21: 125.3 | C21: =(B21*$D$145)+B21 -> 125.3 | D21: -4.2 | E21: =SUM(E18:E20) -> 1 | M21: 0.13 | N21: -0.56 | Q21: =C21/$P$29 -> 0.13 | R21: =D21*Q21 -> -0.56
A22: 2006-10-01 | B22: 186.4 | C22: =(B22*$D$145)+B22 -> 186.4 | D22: -5 | M22: 0.20 | N22: -0.98 | Q22: 0.20 | R22: -0.98
A23: 2006-11-01 | B23: 112 | C23: 112 | D23: -4.6 | M23: 0.12 | N23: -0.54 | Q23: 0.12 | R23: -0.54
A24: 2006-12-01 | B24: 132.7 | C24: 132.7 | D24: -4.6 | M24: 0.14 | N24: -0.64 | Q24: 0.14 | R24: -0.64
A25: 2007-01-01 | B25: 82.2 | C25: 82.2 | D25: -5.1 | M25: 0.09 | N25: -0.44 | Q25: 0.09 | R25: -0.44
A26: 2007-02-01 | B26: 51.4 | C26: 51.4 | D26: -3.5 | M26: 0.05 | N26: -0.19 | Q26: =C26/$P$29 -> 0.05 | R26: -0.19
A27: 2007-03-01 | B27: 22 | C27: =(B27*$D$146)+B27 -> 22 | D27: -1.5 | E27: =B27/SUM($B$27:$B$29) -> 0.2240325866 | F27: =SUM((D27*E27)+(D28*E28)+(D29*E29)) -> -2.30 | G27: =SUM(C27:C29) -> 98.20 | H27: =SUM(((C27-B27)+(C28-B28)+(C29-B29))*J3)+F27 -> -2.30 | M27: 0.02 | N27: -0.03 | P27: Spring= | Q27: =G27/P29 -> 0.10 | R27: =Q27*H27 -> -0.24
A28: 2007-04-01 | B28: 64.2 | C28: =(B28*$D$146)+B28 -> 64.2 | D28: -2.5 | E28: =B28/SUM($B$27:$B$29) -> 0.6537678208 | M28: 0.07 | N28: -0.17
A29: 2007-05-01 | B29: 12 | C29: =(B29*$D$146)+B29 -> 12 | D29: -2.7 | E29: =B29/SUM($B$27:$B$29) -> 0.1221995927 | L29: =SUM(B18:B29) -> 946.7 | M29: 0.01 | N29: -0.03 | O29: =SUM(N18:N29) -> -4.0 | P29: =SUM(C18:C29) -> 946.70 | S29: =SUM(R18:R29) -> -4.0 | U29: =S29-O29 -> 0.0
B30: =SUM(B18:B29) -> 946.7
A33: 2007-06-01 | B33: 29.2 | C33: =(B33*$D$146)+B33 -> 29.2 | D33: -3.8 | E33: =B33/SUM($B$33:$B$35) -> 0.08916030534 | F33: =SUM((D33*E33)+(D34*E34)+(D35*E35)) -> -3.4 | G33: =SUM(C33:C35) -> 327.50 | H33: =SUM(((C33-B33)+(C34-B34)+(C35-B35))*I3)+F33 -> -3.4 | M33: =B33/$L$44 -> 0.02 | N33: =D33*M33 -> -0.09
A34: 2007-07-01 | B34: 93.9 | C34: =(B34*$D$146)+B34 -> 93.9 | D34: -4.5 | E34: =B34/SUM($B$33:$B$35) -> 0.2867175573 | M34: 0.08 | N34: -0.35
A35: 2007-08-01 | B35: 204.4 | C35: 204.4 | D35: -2.9 | E35: 0.6241221374 | M35: 0.17 | N35: -0.50 | P35: summer= | Q35: =G33/P44 -> 0.27 | R35: =Q35*H33 -> -0.94
A36: 2007-09-01 | B36: 52.7 | C36: =(B36*$D$145)+B36 -> 52.7 | D36: -5.6 | E36: =SUM(E33:E35) -> 1 | M36: 0.04 | N36: -0.25 | Q36: =C36/$P$44 -> 0.04 | R36: =D36*Q36 -> -0.25
A37: 2007-10-01 | B37: 57.8 | C37: =(B37*$D$145)+B37 -> 57.8 | D37: -5.2 | M37: 0.05 | N37: -0.25 | Q37: 0.05 | R37: -0.25
A38: 2007-11-01 | B38: 58.2 | C38: 58.2 | D38: -5.4 | M38: 0.05 | N38: -0.26 | Q38: 0.05 | R38: -0.26
A39: 2007-12-01 | B39: 67.2 | C39: 67.2 | D39: -4.9 | M39: 0.06 | N39: -0.28 | Q39: 0.06 | R39: -0.28
A40: 2008-01-01 | B40: 127.6 | C40: 127.6 | D40: -5.1 | M40: 0.11 | N40: -0.54 | Q40: 0.11 | R40: -0.54
A41: 2008-02-01 | B41: 128.7 | C41: 128.7 | D41: -5 | M41: 0.11 | N41: -0.54 | Q41: 0.11 | R41: -0.54
A42: 2008-03-01 | B42: 112.4 | C42: =(B42*$D$146)+B42 -> 112.4 | D42: -3.6 | E42: =B42/SUM($B$42:$B$44) -> 0.2982223401 | F42: =SUM((D42*E42)+(D43*E43)+(D44*E44)) -> -3.86 | G42: =SUM(C42:C44) -> 376.90 | H42: =SUM(((C42-B42)+(C43-B43)+(C44-B44))*J3)+F42 -> -3.9 | M42: 0.09 | N42: -0.34 | P42: Spring= | Q42: =G42/P44 -> 0.31 | R42: =Q42*H42 -> -1.22
A43: 2008-04-01 | B43: 123.8 | C43: =(B43*$D$146)+B43 -> 123.8 | D43: -4.4 | E43: =B43/SUM($B$42:$B$44) -> 0.3284690899 | M43: 0.10 | N43: -0.46
A44: 2008-05-01 | B44: 140.7 | C44: =(B44*$D$146)+B44 -> 140.7 | D44: -3.6 | E44: =B44/SUM($B$42:$B$44) -> 0.3733085699 | L44: =SUM(B33:B44) -> 1196.6 | M44: 0.12 | N44: -0.42 | O44: =SUM(N33:N44) -> -4.3 | P44: =SUM(C33:C44) -> 1196.60 | S44: =SUM(R33:R44) -> -4.3 | U44: =S44-O44 -> 0.0
B45: =SUM(B33:B44) -> 1196.6
A47: 2008-06-01 | B47: 101.1 | C47: =(B47*$D$146)+B47 -> 101.1 | D47: -3.3 | E47: =B47/SUM($B$47:$B$49) -> 0.2843082115 | F47: =SUM((D47*E47)+(D48*E48)+(D49*E49)) -> -5.0 | G47: =SUM(C47:C49) -> 355.60 | H47: =SUM(((C47-B47)+(C48-B48)+(C49-B49))*I3)+F47 -> -5.0 | M47: =B47/$L$58 -> 0.07 | N47: =D47*M47 -> -0.22
A48: 2008-07-01 | B48: 73.4 | C48: =(B48*$D$146)+B48 -> 73.4 | D48: -1.9 | E48: =B48/SUM($B$47:$B$49) -> 0.2064116985 | M48: 0.05 | N48: -0.09
A49: 2008-08-01 | B49: 181.1 | C49: 181.1 | D49: -7.2 | E49: =B49/SUM($B$47:$B$49) -> 0.50928009 | M49: 0.12 | N49: -0.85 | P49: summer= | Q49: =G47/P58 -> 0.23 | R49: =Q49*H47 -> -1.16
A50: 2008-09-01 | B50: 33.8 | C50: =(B50*$D$145)+B50 -> 33.8 | D50: -2.5 | E50: =SUM(E47:E49) -> 1 | M50: 0.02 | N50: -0.06 | Q50: =C50/$P$58 -> 0.02 | R50: =D50*Q50 -> -0.06
A51: 2008-10-01 | B51: 67.74 | C51: =(B51*$D$145)+B51 -> 67.74 | D51: -6.4 | M51: 0.04 | N51: -0.28 | Q51: 0.04 | R51: -0.28
A52: 2008-11-01 | B52: 79.2 | C52: 79.2 | D52: -4.4 | M52: 0.05 | N52: -0.23 | Q52: 0.05 | R52: -0.23
A53: 2008-12-01 | B53: 156 | C53: 156 | D53: -5.4 | M53: 0.10 | N53: -0.55 | Q53: 0.10 | R53: -0.55
A54: 2009-01-01 | B54: 144.4 | C54: 144.4 | D54: -4.5 | M54: 0.09 | N54: -0.42 | Q54: 0.09 | R54: -0.42
A55: 2009-02-01 | B55: 189.6 | C55: 189.6 | D55: -4.7 | M55: 0.12 | N55: -0.58 | Q55: 0.12 | R55: -0.58
A56: 2009-03-01 | B56: 217.4 | C56: =(B56*$D$146)+B56 -> 217.4 | D56: -4.9 | E56: =B56/SUM($B$56:$B$58) -> 0.4289660616 | F56: =SUM((D56*E56)+(D57*E57)+(D58*E58)) -> -4.40 | G56: =SUM(C56:C58) -> 506.80 | H56: =SUM(((C56-B56)+(C57-B57)+(C58-B58))*J3)+F56 -> -4.4 | M56: 0.14 | N56: -0.69 | P56: Spring = | Q56: =G56/P58 -> 0.33 | R56: =Q56*H56 -> -1.45
A57: 2009-04-01 | B57: 101 | C57: =(B57*$D$146)+B57 -> 101 | D57: -3.5 | E57: =B57/SUM($B$56:$B$58) -> 0.1992896606 | M57: 0.07 | N57: -0.23
A58: 2009-05-01 | B58: 188.4 | C58: =(B58*$D$146)+B58 -> 188.4 | D58: -4.3 | E58: =B58/SUM($B$56:$B$58) -> 0.3717442778 | L58: =SUM(B47:B58) -> 1533.14 | M58: 0.12 | N58: -0.53 | O58: =SUM(N47:N58) -> -4.7 | P58: =SUM(C47:C58) -> 1533.14 | S58: =SUM(R47:R58) -> -4.7 | U58: =S58-O58 -> 0.0
A62: 2009-06-01 | B62: 37.8 | C62: =(B62*$D$146)+B62 -> 37.8 | D62: -3.2 | E62: =B62/SUM($B$62:$B$64) -> 0.1063889671 | F62: =SUM((D62*E62)+(D63*E63)+(D64*E64)) -> -3.7 | G62: =SUM(C62:C64) -> 355.30 | H62: =SUM(((C62-B62)+(C63-B63)+(C64-B64))*I3)+F62 -> -3.7 | M62: =B62/$L$73 -> 0.02 | N62: =D62*M62 -> -0.07
A63: 2009-07-01 | B63: 156.8 | C63: =(B63*$D$146)+B63 -> 156.8 | D63: -3.3 | E63: =B63/SUM($B$62:$B$64) -> 0.4413171967 | M63: 0.10 | N63: -0.32
A64: 2009-08-01 | B64: 160.7 | C64: 160.7 | D64: -4.2 | E64: 0.4522938362 | M64: 0.10 | N64: -0.42 | P64: summer= | Q64: =G62/P73 -> 0.22 | R64: =Q64*H62 -> -0.81
A65: 2009-09-01 | B65: 202.5 | C65: =(B65*$D$145)+B65 -> 202.5 | D65: -6.3 | E65: =SUM(E62:E64) -> 1 | M65: 0.13 | N65: -0.79 | Q65: =C65/$P$73 -> 0.13 | R65: =D65*Q65 -> -0.79
A66: 2009-10-01 | B66: 177 | C66: =(B66*$D$145)+B66 -> 177 | D66: -4.5 | M66: 0.11 | N66: -0.49 | Q66: 0.11 | R66: -0.49
A67: 2009-11-01 | B67: 112.8 | C67: 112.8 | D67: -11.4 | M67: 0.07 | N67: -0.80 | Q67: 0.07 | R67: -0.80
A68: 2009-12-01 | B68: 165.8 | C68: 165.8 | D68: -8.1 | M68: 0.10 | N68: -0.83 | Q68: 0.10 | R68: -0.83
A69: 2010-01-01 | B69: 119 | C69: 119 | D69: -5.9 | M69: 0.07 | N69: -0.43 | Q69: 0.07 | R69: -0.43
A70: 2010-02-01 | B70: 84.2 | C70: 84.2 | D70: -8.8 | M70: 0.05 | N70: -0.46 | Q70: 0.05 | R70: -0.46
A71: 2010-03-01 | B71: 144 | C71: =(B71*$D$146)+B71 -> 144 | D71: -6.9 | E71: =B71/SUM($B$71:$B$73) -> 0.3618090452 | F71: =SUM((D71*E71)+(D72*E72)+(D73*E73)) -> -5.27 | G71: =SUM(C71:C73) -> 398.00 | H71: =SUM(((C71-B71)+(C72-B72)+(C73-B73))*J3)+F71 -> -5.3 | M71: 0.09 | N71: -0.62 | P71: Spring = | Q71: =G71/P73 -> 0.25 | R71: =Q71*H71 -> -1.30
A72: 2010-04-01 | B72: 80.6 | C72: =(B72*$D$146)+B72 -> 80.6 | D72: -4 | E72: =B72/SUM($B$71:$B$73) -> 0.2025125628 | M72: 0.05 | N72: -0.20
A73: 2010-05-01 | B73: 173.4 | C73: =(B73*$D$146)+B73 -> 173.4 | D73: -4.5 | E73: =B73/SUM($B$71:$B$73) -> 0.435678392 | L73: =SUM(B62:B73) -> 1614.6 | M73: 0.11 | N73: -0.48 | O73: =SUM(N62:N73) -> -5.9 | P73: =SUM(C62:C73) -> 1614.60 | S73: =SUM(R62:R73) -> -5.9 | U73: =S73-O73 -> 0.0
A76: 2010-06-01 | B76: 150.4 | C76: =(B76*$D$146)+B76 -> 150.4 | D76: -3.6 | E76: =B76/SUM($B$76:$B$78) -> 0.3650485437 | F76: =SUM((D76*E76)+(D77*E77)+(D78*E78)) -> -4.8 | G76: =SUM(C76:C78) -> 412.00 | H76: =SUM(((C76-B76)+(C77-B77)+(C78-B78))*I3)+F76 -> -4.8 | M76: =B76/$L$87 -> 0.12 | N76: =D76*M76 -> -0.42
A77: 2010-07-01 | B77: 149.4 | C77: =(B77*$D$146)+B77 -> 149.4 | D77: -5.2 | E77: =B77/SUM($B$76:$B$78) -> 0.3626213592 | M77: 0.11 | N77: -0.60
A78: 2010-08-01 | B78: 112.2 | C78: 112.2 | D78: -6 | E78: 0.2723300971 | M78: 0.09 | N78: -0.52 | Q78: =G76/P87 -> 0.32 | R78: =Q78*H76 -> -1.53
A79: 2010-09-01 | B79: 38.8 | C79: =(B79*$D$145)+B79 -> 38.8 | D79: -6 | E79: =SUM(E76:E78) -> 1 | M79: 0.03 | N79: -0.18 | Q79: =C79/$P$87 -> 0.03 | R79: =D79*Q79 -> -0.18
A80: 2010-10-01 | B80: 52.4 | C80: =(B80*$D$145)+B80 -> 52.4 | D80: -6 | M80: 0.04 | N80: -0.24 | Q80: 0.04 | R80: -0.24
A81: 2010-11-01 | B81: 160.8 | C81: 160.8 | D81: -5.1 | M81: 0.12 | N81: -0.63 | Q81: 0.12 | R81: -0.63
A82: 2010-12-01 | B82: 28.8 | C82: 28.8 | D82: -5.9 | M82: 0.02 | N82: -0.13 | Q82: 0.02 | R82: -0.13
A83: 2011-01-01 | B83: 98.2 | C83: 98.2 | D83: -5.8 | M83: 0.08 | N83: -0.44 | Q83: 0.08 | R83: -0.44
A84: 2011-02-01 | B84: 71.2 | C84: 71.2 | D84: -5.5 | M84: 0.05 | N84: -0.30 | Q84: 0.05 | R84: -0.30
A85: 2011-03-01 | B85: 206.2 | C85: =(B85*$D$146)+B85 -> 206.2 | D85: -5.8 | E85: =B85/SUM($B$85:$B$87) -> 0.4673617407 | F85: =SUM((D85*E85)+(D86*E86)+(D87*E87)) -> -4.53 | G85: =SUM(C85:C87) -> 441.20 | H85: =SUM(((C85-B85)+(C86-B86)+(C87-B87))*J3)+F85 -> -4.5 | M85: 0.16 | N85: -0.92 | P85: Spring = | Q85: =G85/P87 -> 0.34 | R85: =Q85*H85 -> -1.53
A86: 2011-04-01 | B86: 198.8 | C86: =(B86*$D$146)+B86 -> 198.8 | D86: -3.4 | E86: =B86/SUM($B$85:$B$87) -> 0.4505893019 | M86: 0.15 | N86: -0.52
A87: 2011-05-01 | B87: 36.2 | C87: =(B87*$D$146)+B87 -> 36.2 | D87: -3.5 | E87: =B87/SUM($B$85:$B$87) -> 0.08204895739 | L87: =SUM(B76:B87) -> 1303.4 | M87: 0.03 | N87: -0.10 | O87: =SUM(N76:N87) -> -5.0 | P87: =SUM(C76:C87) -> 1303.40 | S87: =SUM(R76:R87) -> -5.0 | U87: =S87-O87 -> 0.0
A90: 2011-06-01 | B90: 22.8 | C90: =(B90*$D$146)+B90 -> 22.8 | D90: -5.1 | E90: =B90/SUM($B$90:$B$92) -> 0.1282339708 | F90: =SUM((D90*E90)+(D91*E91)+(D92*E92)) -> -1.7 | G90: =SUM(C90:C92) -> 177.80 | H90: =SUM(((C90-B90)+(C91-B91)+(C92-B92))*I3)+F90 -> -1.7 | M90: =B90/$L$101 -> 0.02 | N90: =D90*M90 -> -0.09
A91: 2011-07-01 | B91: 130.2 | C91: =(B91*$D$146)+B91 -> 130.2 | D91: -1.3 | E91: =B91/SUM($B$90:$B$92) -> 0.7322834646 | M91: 0.10 | N91: -0.13
A92: 2011-08-01 | B92: 24.8 | C92: 24.8 | D92: -0.5 | E92: 0.1394825647 | M92: 0.02 | N92: -0.01 | Q92: =G90/P101 -> 0.13 | R92: =Q92*H90 -> -0.22
A93: 2011-09-01 | B93: 280.5 | C93: =(B93*$D$145)+B93 -> 280.5 | D93: -8.9 | E93: =SUM(E90:E92) -> 1 | M93: 0.21 | N93: -1.88 | Q93: =C93/$P$101 -> 0.21 | R93: =D93*Q93 -> -1.88
A94: 2011-10-01 | B94: 10.2 | C94: =(B94*$D$145)+B94 -> 10.2 | D94: -4 | M94: 0.01 | N94: -0.03 | Q94: 0.01 | R94: -0.03
A95: 2011-11-01 | B95: 105.8 | C95: 105.8 | D95: -4.6 | M95: 0.08 | N95: -0.37 | Q95: 0.08 | R95: -0.37
A96: 2011-12-01 | B96: 138.6 | C96: 138.6 | D96: -4.7 | M96: 0.10 | N96: -0.49 | Q96: 0.10 | R96: -0.49
A97: 2012-01-01 | B97: 152.7 | C97: 152.7 | D97: -4.2 | M97: 0.12 | N97: -0.48 | Q97: 0.12 | R97: -0.48
A98: 2012-02-01 | B98: 170.3 | C98: 170.3 | D98: -5.4 | I98: slope mean | M98: 0.13 | N98: -0.69 | Q98: =C98/$P$101 -> 0.13 | R98: -0.69
A99: 2012-03-01 | B99: 123.3 | C99: =(B99*$D$146)+B99 -> 123.3 | D99: -4.9 | E99: =B99/SUM($B$99:$B$101) -> 0.4266435986 | F99: =SUM((D99*E99)+(D100*E100)+(D101*E101)) -> -4.54 | G99: =SUM(C99:C101) -> 289.00 | H99: =SUM(((C99-B99)+(C100-B100)+(C101-B101))*J3)+F99 -> -4.5 | I99: -0.0053 | M99: 0.09 | N99: -0.46 | P99: Spring = | Q99: =G99/P101 -> 0.22 | R99: =Q99*H99 -> -0.99
A100: 2012-04-01 | B100: 15.8 | C100: =(B100*$D$146)+B100 -> 15.8 | D100: -1.2 | E100: =B100/SUM($B$99:$B$101) -> 0.05467128028 | M100: 0.01 | N100: -0.01
A101: 2012-05-01 | B101: 149.9 | C101: =(B101*$D$146)+B101 -> 149.9 | D101: -4.6 | E101: =B101/SUM($B$99:$B$101) -> 0.5186851211 | L101: =SUM(B90:B101) -> 1324.9 | M101: 0.11 | N101: -0.52 | O101: =SUM(N90:N101) -> -5.2 | P101: =SUM(C90:C101) -> 1324.90 | S101: =SUM(R90:R101) -> -5.2 | U101: =S101-O101 -> 0.0
A104: 2012-06-01 | B104: 34.4 | C104: =(B104*$D$146)+B104 -> 34.4 | D104: -6.2 | E104: =B104/SUM($B$104:$B$106) -> 0.1370517928 | F104: =SUM((D104*E104)+(D105*E105)+(D106*E106)) -> -3.3 | G104: =SUM(C104:C106) -> 251.00 | H104: =SUM(((C104-B104)+(C105-B105)+(C106-B106))*I3)+F104 -> -3.3 | M104: =B104/$L$115 -> 0.02303468595 | N104: =D104*M104 -> -0.1428150529
A105: 2012-07-01 | B105: 77.1 | C105: =(B105*$D$146)+B105 -> 77.1 | D105: -2.3 | E105: =B105/SUM($B$104:$B$106) -> 0.3071713147 | M105: =B105/$L$115 -> 0.0516271595 | N105: -0.1187424669
A106: 2012-08-01 | B106: 139.5 | C106: 139.5 | D106: -3.1 | E106: 0.5557768924 | M106: 0.09341100844 | N106: -0.2895741262 | P106: summer= | Q106: =G104/P115 -> 0.17 | R106: =Q106*H104 -> -0.55
A107: 2012-09-01 | B107: 201.5 | C107: =(B107*$D$145)+B107 -> 201.5 | D107: -4.2 | E107: =SUM(E104:E106) -> 1 | M107: 0.1349270122 | N107: -0.5666934512 | Q107: =C107/$P$115 -> 0.13 | R107: =D107*Q107 -> -0.57
A108: 2012-10-01 | B108: 76.8 | C108: =(B108*$D$145)+B108 -> 76.8 | D108: -4.9 | M108: 0.05142627561 | N108: -0.2519887505 | Q108: 0.05 | R108: -0.25
A109: 2012-11-01 | B109: 32 | C109: 32 | D109: -5.7 | M109: 0.02142761484 | N109: -0.1221374046 | Q109: 0.02 | R109: -0.12
A110: 2012-12-01 | B110: 231.6 | C110: 231.6 | D110: -5.9 | M110: 0.1550823624 | N110: -0.9149859381 | Q110: 0.16 | R110: -0.91
A111: 2013-01-01 | B111: 208.3 | C111: 208.3 | D111: -3.9 | M111: 0.1394803803 | N111: -0.5439734833 | Q111: 0.14 | R111: -0.54
A112: 2013-02-01 | B112: 168.4 | C112: 168.4 | D112: -3.9 | M112: 0.1127628231 | N112: -0.43977501 | Q112: 0.11 | R112: -0.44
A113: 2013-03-01 | B113: 145.1 | C113: =(B113*$D$146)+B113 -> 145.1 | D113: -3.6 | E113: =B113/SUM($B$113:$B$115) -> 0.4481161211 | F113: =SUM((D113*E113)+(D114*E114)+(D115*E115)) -> -4.01 | G113: =SUM(C113:C115) -> 323.80 | H113: =SUM(((C113-B113)+(C114-B114)+(C115-B115))*J3)+F113 -> -4.0 | M113: 0.09716084103 | N113: -0.3497790277 | P113: Spring = | Q113: =G113/P115 -> 0.22 | R113: =Q113*H113 -> -0.87
A114: 2013-04-01 | B114: 141.7 | C114: =(B114*$D$146)+B114 -> 141.7 | D114: -4.5 | E114: =B114/SUM($B$113:$B$115) -> 0.4376158122 | M114: 0.09488415696 | N114: -0.4269787063
A115: 2013-05-01 | B115: 37 | C115: 37 | D115: -3.7 | E115: =B115/SUM($B$113:$B$115) -> 0.1142680667 | L115: =SUM(B104:B115) -> 1493.4 | M115: 0.02477567966 | N115: -0.09167001473 | O115: =SUM(N104:N115) -> -4.3 | P115: =SUM(C104:C115) -> 1493.40 | S115: =SUM(R104:R115) -> -4.3 | U115: =S115-O115 -> 0.0
A118: 2013-06-01 | B118: 217.6 | C118: =(B118*$D$146)+B118 -> 217.6 | D118: -6 | E118: =B118/SUM($B$118:$B$120) -> 0.4279252704 | F118: =SUM((D118*E118)+(D119*E119)+(D120*E120)) -> -4.7 | G118: =SUM(C118:C120) -> 508.50 | H118: =SUM(((C118-B118)+(C119-B119)+(C120-B120))*I3)+F118 -> -4.7 | M118: =B118/$L$129 -> 0.1421478965 | N118: =D118*M118 -> -0.8528873791
A119: 2013-07-01 | B119: 133.6 | C119: =(B119*$D$146)+B119 -> 133.6 | D119: -4.9 | E119: =B119/SUM($B$118:$B$120) -> 0.26273353 | M119: 0.08727462765 | N119: -0.4276456755
A120: 2013-08-01 | B120: 157.3 | C120: 157.3 | D120: -2.6 | E120: 0.3093411996 | M120: 0.1027567285 | N120: -0.2671674941 | P120: summer= | Q120: =G118/P129 -> 0.33 | R120: =Q120*H118 -> -1.55
A121: 2013-09-01 | B121: 46.5 | C121: =(B121*$D$145)+B121 -> 46.5 | D121: -6.1 | E121: =SUM(E118:E120) -> 1 | M121: 0.03037627384 | N121: -0.1852952704 | Q121: =C121/$P$129 -> 0.03 | R121: =D121*Q121 -> -0.19
A122: 2013-10-01 | B122: 40.7 | C122: =(B122*$D$145)+B122 -> 40.7 | D122: -3.2 | M122: 0.02658740528 | N122: -0.08507969689 | Q122: 0.03 | R122: -0.09
A123: 2013-11-01 | B123: 88.8 | C123: 88.8 | D123: -6.4 | M123: 0.05800888424 | N123: -0.3712568592 | Q123: 0.06 | R123: -0.37
A124: 2013-12-01 | B124: 220.6 | C124: 220.6 | D124: -4.7 | M124: 0.1441076561 | N124: -0.6773059838 | Q124: 0.14 | R124: -0.68
A125: 2014-01-01 | B125: 52.1 | C125: 52.1 | D125: -6.3 | M125: 0.03403449177 | N125: -0.2144172981 | Q125: 0.03 | R125: -0.21
A126: 2014-02-01 | B126: 125.5 | C126: 125.5 | D126: -5 | M126: 0.08198327672 | N126: -0.4099163836 | Q126: 0.08 | R126: -0.41
A127: 2014-03-01 | B127: 130.9 | C127: =(B127*$D$146)+B127 -> 130.9 | D127: -5.4 | E127: =B127/SUM($B$127:$B$129) -> 0.2921222941 | F127: =SUM((D127*E127)+(D128*E128)+(D129*E129)) -> -4.05 | G127: =SUM(C127:C129) -> 448.10 | H127: =SUM(((C127-B127)+(C128-B128)+(C129-B129))*J3)+F127 -> -4.1 | M127: 0.085510844 | N127: -0.4617585576 | P127: Spring = | Q127: =G127/P129 -> 0.29 | R127: =Q127*H127 -> -1.19
A128: 2014-04-01 | B128: 276.3 | C128: =(B128*$D$146)+B128 -> 276.3 | D128: -3.6 | E128: =B128/SUM($B$127:$B$129) -> 0.6166034367 | M128: 0.1804938594 | N128: -0.6497778939
A129: 2014-05-01 | B129: 40.9 | C129: 40.9 | D129: -2.8 | E129: =B129/SUM($B$127:$B$129) -> 0.09127426914 | L129: =SUM(B118:B129) -> 1530.8 | M129: 0.02671805592 | N129: -0.07481055657 | O129: =SUM(N118:N129) -> -4.7 | P129: =SUM(C118:C129) -> 1530.80 | S129: =SUM(R118:R129) -> -4.7 | U129: =S129-O129 -> 0.0
A132: 2014-06-01 | B132: 87.3 | C132: =(B132*$D$146)+B132 -> 87.3 | D132: -4.3 | E132: =B132/SUM($B$132:$B$134) -> 0.4470046083 | F132: =SUM((D132*E132)+(D133*E133)+(D134*E134)) -> -3.4 | G132: =SUM(C132:C134) -> 195.30 | H132: =SUM(((C132-B132)+(C133-B133)+(C134-B134))*I3)+F132 -> -3.4 | M132: =B132/$L$143 -> 0.06654977893 | N132: =D132*M132 -> -0.2861640494
A133: 2014-07-01 | B133: 19.2 | C133: =(B133*$D$146)+B133 -> 19.2 | D133: -5 | E133: =B133/SUM($B$132:$B$134) -> 0.09831029186 | M133: 0.0146363775 | N133: -0.07318188748
A134: 2014-08-01 | B134: 88.8 | C134: 88.8 | D134: -2.1 | E134: 0.4546850998 | M134: 0.06769324592 | N134: -0.1421558164 | P134: summer= | Q134: =G132/P143 -> 0.15 | R134: =Q134*H132 -> -0.50
A135: 2014-09-01 | B135: 38.2 | C135: =(B135*$D$145)+B135 -> 38.2 | D135: -3.9 | E135: =SUM(E132:E134) -> 1 | M135: 0.02912029273 | N135: -0.1135691416 | Q135: =C135/$P$143 -> 0.03 | R135: =D135*Q135 -> -0.11
A136: 2014-10-01 | B136: 83.5 | C136: =(B136*$D$145)+B136 -> 83.5 | D136: -4.8 | M136: 0.06365299588 | N136: -0.3055343802 | Q136: 0.06 | R136: -0.31
A137: 2014-11-01 | B137: 119.7 | C137: 119.7 | D137: -7.4 | M137: 0.09124866596 | N137: -0.6752401281 | Q137: 0.09 | R137: -0.68
A138: 2014-12-01 | B138: 191.3 | C138: 191.3 | D138: -6.4 | M138: 0.145830157 | N138: -0.933313005 | Q138: 0.15 | R138: -0.93
A139: 2015-01-01 | B139: 173.2 | C139: 173.2 | D139: -6.2 | M139: 0.132032322 | N139: -0.8186003964 | Q139: 0.13 | R139: -0.82
A140: 2015-02-01 | B140: 128.6 | C140: 128.6 | D140: -6.5 | M140: 0.09803323677 | N140: -0.637216039 | Q140: 0.10 | R140: -0.64
A141: 2015-03-01 | B141: 121.4 | C141: =(B141*$D$146)+B141 -> 121.4 | D141: -3.7 | E141: =B141/SUM($B$141:$B$143) -> 0.3178010471 | F141: =SUM((D141*E141)+(D142*E142)+(D143*E143)) -> -4.15 | G141: =SUM(C141:C143) -> 382.00 | H141: =SUM(((C141-B141)+(C142-B142)+(C143-B143))*J3)+F141 -> -4.1 | M141: 0.09254459521 | N141: -0.3424150023 | P141: Spring = | Q141: =G141/P143 -> 0.29 | R141: =Q141*H141 -> -1.21
A142: 2015-04-01 | B142: 178.4 | C142: =(B142*$D$146)+B142 -> 178.4 | D142: -4.7 | E142: =B142/SUM($B$141:$B$143) -> 0.4670157068 | M142: 0.1359963409 | N142: -0.6391828023
A143: 2015-05-01 | B143: 82.2 | C143: 82.2 | D143: -3.6 | E143: =B143/SUM($B$141:$B$143) -> 0.2151832461 | L143: =SUM(B132:B143) -> 1311.8 | M143: 0.06266199116 | N143: -0.2255831682 | O143: =SUM(N132:N143) -> -5.2 | P143: =SUM(C132:C143) -> 1311.80 | S143: =SUM(R132:R143) -> -5.2 | U143: =S143-O143 -> 0.0
D144: Shift precipitation here (cells below)
B145: winter' | C145: fractional change | D145: 0
B146: summer' | C146: Fractional change | D146: 0 | P146: =AVERAGE(U14:U143) -> 0.00 | Q146: Mean rainfall annual d18O shift (10-year average) result
A147: winter' corresponds to the months from October to March
A148: summer' corresponds to the months from April to September
A150: Note 1: values can be from 0< to 1 for a positive change or -1 to >0 for negative changes
A151: maximum fractional changes of -1 or 1, correspond to 100% change in precipitation amount
A152: Note 2= Stalagmite WE d18O shifts by -1 per mil during the YD cooling event.
